[Event "Late-Titled-Tuesday-Blitz-April-16-2024"]
[Site "Chess.com"]
[Date "2024.04.16"]
[Round "6"]
[White "noblerone"]
[Black "MarceloPlaya"]
[Result "1-0"]
[WhiteElo "2493"]
[BlackElo "2333"]
[TimeControl "180+1"]
[EndTime "15:03:42 PDT"]
[Termination "noblerone won on time"]

1. e4 {[%clk 0:03:00.9]} 1... e6 {[%clk 0:03:00.5]} 2. Qe2 {[%clk 0:02:50.5]}
2... Be7 {[%clk 0:02:56.3]} 3. g3 {[%clk 0:02:46.9]} 3... Nf6 {[%clk 0:02:55.8]}
4. Bg2 {[%clk 0:02:46.2]} 4... O-O {[%clk 0:02:54.9]} 5. Nc3 {[%clk 0:02:45.6]}
5... e5 {[%clk 0:02:52.9]} 6. h3 {[%clk 0:02:41.4]} 6... d6 {[%clk 0:02:51.6]}
7. d3 {[%clk 0:02:38.1]} 7... Nc6 {[%clk 0:02:50.8]} 8. Nf3 {[%clk 0:02:38.8]}
8... Re8 {[%clk 0:02:43.4]} 9. O-O {[%clk 0:02:10.1]} 9... Bf8 {[%clk 0:02:20]}
10. Bg5 {[%clk 0:02:06.8]} 10... h6 {[%clk 0:02:17.4]} 11. Bxf6 {[%clk
0:02:06.7]} 11... Qxf6 {[%clk 0:02:16]} 12. Nd5 {[%clk 0:02:07.1]} 12... Qd8
{[%clk 0:02:15.4]} 13. c3 {[%clk 0:02:07.7]} 13... Ne7 {[%clk 0:02:10.9]} 14.
Ne3 {[%clk 0:02:04.3]} 14... f5 {[%clk 0:02:00.3]} 15. exf5 {[%clk 0:02:04.2]}
15... Nxf5 {[%clk 0:01:59.8]} 16. Nxf5 {[%clk 0:02:04.4]} 16... Bxf5 {[%clk
0:01:59]} 17. Nh4 {[%clk 0:02:04.9]} 17... Be6 {[%clk 0:01:49.3]} 18. Bxb7
{[%clk 0:01:46.7]} 18... Bxh3 {[%clk 0:01:45.6]} 19. Bd5+ {[%clk 0:01:46.8]}
19... Be6 {[%clk 0:01:18.1]} 20. Qe4 {[%clk 0:01:17.5]} 20... Rb8 {[%clk
0:01:11.3]} 21. b4 {[%clk 0:01:16.9]} 21... Qf6 {[%clk 0:01:05.4]} 22. f4 {[%clk
0:01:01.4]} 22... Bxd5 {[%clk 0:00:56.6]} 23. Qxd5+ {[%clk 0:01:00.8]} 23... Qe6
{[%clk 0:00:56.6]} 24. Qxe6+ {[%clk 0:00:59.7]} 24... Rxe6 {[%clk 0:00:56.3]}
25. Rae1 {[%clk 0:00:45.9]} 25... Rbe8 {[%clk 0:00:53.6]} 26. f5 {[%clk
0:00:45]} 26... Rf6 {[%clk 0:00:51.3]} 27. g4 {[%clk 0:00:45]} 27... Be7 {[%clk
0:00:49.3]} 28. Ng6 {[%clk 0:00:45.1]} 28... Rf7 {[%clk 0:00:41.8]} 29. Kg2
{[%clk 0:00:36.5]} 29... Bf6 {[%clk 0:00:37.6]} 30. c4 {[%clk 0:00:33]} 30... c6
{[%clk 0:00:35.1]} 31. a4 {[%clk 0:00:32.3]} 31... a6 {[%clk 0:00:31.1]} 32. Rb1
{[%clk 0:00:29.6]} 32... e4 {[%clk 0:00:29.6]} 33. Rfe1 {[%clk 0:00:29.8]} 33...
e3 {[%clk 0:00:26]} 34. Kf3 {[%clk 0:00:29.7]} 34... Bd4 {[%clk 0:00:24.6]} 35.
b5 {[%clk 0:00:26]} 35... cxb5 {[%clk 0:00:23.5]} 36. axb5 {[%clk 0:00:25.1]}
36... axb5 {[%clk 0:00:23.3]} 37. Rxb5 {[%clk 0:00:23.2]} 37... Rf6 {[%clk
0:00:16.4]} 38. Rd5 {[%clk 0:00:22.3]} 38... Ba7 {[%clk 0:00:11.4]} 39. d4
{[%clk 0:00:22.3]} 39... h5 {[%clk 0:00:10.2]} 40. g5 {[%clk 0:00:19.6]} 40...
Rf7 {[%clk 0:00:08.9]} 41. Rxe3 {[%clk 0:00:18.2]} 41... Rxe3+ {[%clk
0:00:08.4]} 42. Kxe3 {[%clk 0:00:19.1]} 42... Rb7 {[%clk 0:00:07.6]} 43. Rxd6
{[%clk 0:00:17.8]} 43... Rb3+ {[%clk 0:00:07.7]} 44. Ke4 {[%clk 0:00:17.7]}
44... Kf7 {[%clk 0:00:06.8]} 45. Rd7+ {[%clk 0:00:17.4]} 1-0

[Event "Late-Titled-Tuesday-Blitz-April-16-2024"]
[Site "Chess.com"]
[Date "2024.04.16"]
[Round "6"]
[White "ritanovikova"]
[Black "jinxy2009"]
[Result "1/2-1/2"]
[WhiteElo "2159"]
[BlackElo "2307"]
[TimeControl "180+1"]
[EndTime "15:03:42 PDT"]
[Termination "Game drawn by repetition"]

1. e4 {[%clk 0:02:58.4]} 1... c5 {[%clk 0:02:58.1]} 2. Nc3 {[%clk 0:02:57.7]}
2... Nc6 {[%clk 0:02:58.2]} 3. d3 {[%clk 0:02:58.6]} 3... g6 {[%clk 0:02:57.6]}
4. Be3 {[%clk 0:02:58.8]} 4... d6 {[%clk 0:02:56.9]} 5. Qd2 {[%clk 0:02:59.1]}
5... Bg7 {[%clk 0:02:56.9]} 6. g3 {[%clk 0:02:59.5]} 6... Nf6 {[%clk 0:02:57]}
7. Bh6 {[%clk 0:02:58.8]} 7... O-O {[%clk 0:02:56.3]} 8. h4 {[%clk 0:02:57.9]}
8... Nd4 {[%clk 0:02:49.4]} 9. O-O-O {[%clk 0:02:55.6]} 9... b5 {[%clk
0:02:49.1]} 10. h5 {[%clk 0:02:52.6]} 10... Nxh5 {[%clk 0:02:45.3]} 11. Rxh5
{[%clk 0:02:50.7]} 11... gxh5 {[%clk 0:02:43.4]} 12. Qg5 {[%clk 0:02:50.2]}
12... Ne6 {[%clk 0:02:43.7]} 13. Qd2 {[%clk 0:02:45.7]} 13... Qa5 {[%clk
0:02:35.4]} 14. Bh3 {[%clk 0:02:37.6]} 14... Bxh6 {[%clk 0:02:27.2]} 15. Qxh6
{[%clk 0:02:35.9]} 15... Ng7 {[%clk 0:02:13.3]} 16. Bxc8 {[%clk 0:02:26.8]}
16... Raxc8 {[%clk 0:02:12.7]} 17. Nf3 {[%clk 0:02:20.8]} 17... f6 {[%clk
0:02:07.2]} 18. Kb1 {[%clk 0:02:14.1]} 18... Rf7 {[%clk 0:01:51.3]} 19. Rh1
{[%clk 0:02:06.1]} 19... b4 {[%clk 0:01:50.2]} 20. Nd5 {[%clk 0:02:04.6]} 20...
Rc6 {[%clk 0:01:50.1]} 21. Rxh5 {[%clk 0:01:41.3]} 21... Nxh5 {[%clk 0:01:40.9]}
22. Qxh5 {[%clk 0:01:42.2]} 22... Ra6 {[%clk 0:01:40.7]} 23. Qg4+ {[%clk
0:01:39.7]} 23... Rg7 {[%clk 0:01:36.6]} 24. Qc8+ {[%clk 0:01:36.3]} 24... Kf7
{[%clk 0:01:36.6]} 25. Qd7 {[%clk 0:00:54.5]} 25... Qxa2+ {[%clk 0:01:34]} 26.
Kc1 {[%clk 0:00:54.6]} 26... Kg6 {[%clk 0:00:29.1]} 27. Nh4+ {[%clk 0:00:41.9]}
27... Kh6 {[%clk 0:00:26.1]} 28. Nf5+ {[%clk 0:00:40.4]} 28... Kg6 {[%clk
0:00:25.5]} 29. Nxg7 {[%clk 0:00:33.8]} 29... Qa1+ {[%clk 0:00:22.2]} 30. Kd2
{[%clk 0:00:31.6]} 30... Qf1 {[%clk 0:00:19.3]} 31. Qg4+ {[%clk 0:00:26.2]}
31... Kf7 {[%clk 0:00:19]} 32. Nf4 {[%clk 0:00:12.5]} 32... Qxf2+ {[%clk
0:00:18.4]} 33. Ne2 {[%clk 0:00:11.3]} 33... h5 {[%clk 0:00:06.9]} 34. Qxh5+
{[%clk 0:00:04.4]} 34... Kxg7 {[%clk 0:00:06.8]} 35. Qg4+ {[%clk 0:00:04.5]}
35... Kf7 {[%clk 0:00:07.1]} 36. Qh5+ {[%clk 0:00:04.5]} 36... Kf8 {[%clk
0:00:07.5]} 37. Qh8+ {[%clk 0:00:03.9]} 37... Kf7 {[%clk 0:00:07.5]} 38. Qh7+
{[%clk 0:00:04.4]} 38... Ke6 {[%clk 0:00:07.7]} 39. Qh3+ {[%clk 0:00:04]} 39...
Kf7 {[%clk 0:00:06.4]} 40. Qh7+ {[%clk 0:00:03.3]} 40... Kf8 {[%clk 0:00:05.3]}
41. Qh8+ {[%clk 0:00:03.8]} 41... Kf7 {[%clk 0:00:05.6]} 42. Qh7+ {[%clk
0:00:04.3]} 1/2-1/2

[Event "Late-Titled-Tuesday-Blitz-April-16-2024"]
[Site "Chess.com"]
[Date "2024.04.16"]
[Round "6"]
[White "akanga001"]
[Black "ShahxaibKhan"]
[Result "0-1"]
[WhiteElo "2134"]
[BlackElo "2454"]
[TimeControl "180+1"]
[EndTime "15:03:44 PDT"]
[Termination "ShahxaibKhan won on time"]

1. d4 {[%clk 0:02:52.5]} 1... Nf6 {[%clk 0:02:58.8]} 2. c4 {[%clk 0:02:51.8]}
2... e6 {[%clk 0:02:58.1]} 3. Nc3 {[%clk 0:02:51]} 3... Bb4 {[%clk 0:02:58.2]}
4. e3 {[%clk 0:02:51.2]} 4... c5 {[%clk 0:02:52.3]} 5. Bd3 {[%clk 0:02:51]} 5...
Nc6 {[%clk 0:02:48.7]} 6. Nf3 {[%clk 0:02:50]} 6... Bxc3+ {[%clk 0:02:47.5]} 7.
bxc3 {[%clk 0:02:48.9]} 7... O-O {[%clk 0:02:48.4]} 8. O-O {[%clk 0:02:47.9]}
8... b6 {[%clk 0:02:46.4]} 9. e4 {[%clk 0:02:44.7]} 9... d6 {[%clk 0:02:40.2]}
10. Bb2 {[%clk 0:02:24.9]} 10... e5 {[%clk 0:02:34.2]} 11. Re1 {[%clk
0:02:15.9]} 11... Bg4 {[%clk 0:02:31.6]} 12. h3 {[%clk 0:02:13.4]} 12... Bxf3
{[%clk 0:02:30.4]} 13. Qxf3 {[%clk 0:02:10.9]} 13... cxd4 {[%clk 0:02:31.3]} 14.
cxd4 {[%clk 0:02:10.1]} 14... exd4 {[%clk 0:02:32.2]} 15. Rad1 {[%clk
0:01:38.9]} 15... Nd7 {[%clk 0:02:29.9]} 16. Qg3 {[%clk 0:01:31.2]} 16... Nde5
{[%clk 0:02:21.8]} 17. f4 {[%clk 0:01:26.6]} 17... Nd7 {[%clk 0:02:04.8]} 18. e5
{[%clk 0:01:15]} 18... dxe5 {[%clk 0:01:59.1]} 19. fxe5 {[%clk 0:01:14]} 19...
Nc5 {[%clk 0:01:58.8]} 20. Bb1 {[%clk 0:01:09]} 20... Ne6 {[%clk 0:01:53.7]} 21.
Qf3 {[%clk 0:01:04.1]} 21... Rc8 {[%clk 0:01:52.2]} 22. Qe4 {[%clk 0:00:59.6]}
22... g6 {[%clk 0:01:40.8]} 23. Bc1 {[%clk 0:00:54.4]} 23... Nc5 {[%clk
0:01:21.7]} 24. Qd5 {[%clk 0:00:47.6]} 24... Re8 {[%clk 0:01:08.9]} 25. Bf4
{[%clk 0:00:39.6]} 25... Ne6 {[%clk 0:00:53.5]} 26. Bh2 {[%clk 0:00:31.1]} 26...
Qg5 {[%clk 0:00:47.4]} 27. Qe4 {[%clk 0:00:26.4]} 27... Nc5 {[%clk 0:00:42.1]}
28. Qe2 {[%clk 0:00:15.2]} 28... Rcd8 {[%clk 0:00:35.7]} 29. Qf3 {[%clk
0:00:11.5]} 29... Nxe5 {[%clk 0:00:28.6]} 30. Bxe5 {[%clk 0:00:08.7]} 30... Rxe5
{[%clk 0:00:27.9]} 31. Rf1 {[%clk 0:00:08.3]} 31... Qe7 {[%clk 0:00:21.3]} 32.
Kh1 {[%clk 0:00:06.2]} 32... Re3 {[%clk 0:00:17]} 33. Qc6 {[%clk 0:00:04.5]}
33... f5 {[%clk 0:00:09.8]} 34. a4 {[%clk 0:00:02.2]} 34... Qe6 {[%clk
0:00:06.6]} 0-1

[Event "Late-Titled-Tuesday-Blitz-April-16-2024"]
[Site "Chess.com"]
[Date "2024.04.16"]
[Round "6"]
[White "CMButgood"]
[Black "DraningWaterHi"]
[Result "1-0"]
[WhiteElo "2041"]
[BlackElo "2198"]
[TimeControl "180+1"]
[EndTime "15:03:46 PDT"]
[Termination "CMButgood won on time"]

1. e4 {[%clk 0:03:00.1]} 1... c5 {[%clk 0:02:59.6]} 2. Nf3 {[%clk 0:02:59.6]}
2... e6 {[%clk 0:02:59.6]} 3. d4 {[%clk 0:03:00.1]} 3... cxd4 {[%clk 0:02:58.6]}
4. Nxd4 {[%clk 0:03:01]} 4... a6 {[%clk 0:02:58.9]} 5. Nc3 {[%clk 0:03:00.9]}
5... Qc7 {[%clk 0:02:55.9]} 6. Bd3 {[%clk 0:03:00.9]} 6... Nf6 {[%clk
0:02:48.6]} 7. Qe2 {[%clk 0:03:00.3]} 7... Bb4 {[%clk 0:02:40.8]} 8. Bd2 {[%clk
0:02:59.6]} 8... Nc6 {[%clk 0:02:40.3]} 9. Nxc6 {[%clk 0:02:49.3]} 9... dxc6
{[%clk 0:02:40.4]} 10. a3 {[%clk 0:02:44.5]} 10... Bd6 {[%clk 0:02:38.3]} 11.
O-O-O {[%clk 0:02:38.5]} 11... O-O {[%clk 0:02:36.2]} 12. g3 {[%clk 0:02:36.1]}
12... e5 {[%clk 0:02:36]} 13. h3 {[%clk 0:02:15.1]} 13... b5 {[%clk 0:02:36]}
14. Bg5 {[%clk 0:02:05.2]} 14... Nd7 {[%clk 0:02:24.5]} 15. h4 {[%clk
0:01:57.3]} 15... f6 {[%clk 0:02:22.9]} 16. Be3 {[%clk 0:01:57]} 16... a5 {[%clk
0:02:22.4]} 17. Bxb5 {[%clk 0:01:55.7]} 17... Nc5 {[%clk 0:01:53.3]} 18. Bc4+
{[%clk 0:01:51.1]} 18... Kh8 {[%clk 0:01:53.4]} 19. h5 {[%clk 0:01:45.9]} 19...
Rb8 {[%clk 0:01:45.2]} 20. h6 {[%clk 0:01:43.8]} 20... g6 {[%clk 0:01:45.5]} 21.
f3 {[%clk 0:01:26.1]} 21... Be7 {[%clk 0:01:38.3]} 22. Qf2 {[%clk 0:01:19.3]}
22... Qb7 {[%clk 0:01:13.3]} 23. Bxc5 {[%clk 0:01:09]} 23... Qxb2+ {[%clk
0:01:07.5]} 24. Kd2 {[%clk 0:01:09.3]} 24... Rd8+ {[%clk 0:01:02.8]} 25. Bd3
{[%clk 0:01:09.7]} 25... Rb3 {[%clk 0:00:53.4]} 26. Bxe7 {[%clk 0:01:03.6]}
26... Rxd3+ {[%clk 0:00:48.6]} 27. Kxd3 {[%clk 0:00:53.5]} 27... Qxc3+ {[%clk
0:00:34.2]} 28. Ke2 {[%clk 0:00:49.6]} 28... Ba6+ {[%clk 0:00:34.6]} 29. Rd3
{[%clk 0:00:46.8]} 29... Qxc2+ {[%clk 0:00:33.8]} 30. Kf1 {[%clk 0:00:45.3]}
30... Qxd3+ {[%clk 0:00:30.5]} 31. Kg2 {[%clk 0:00:44.9]} 31... Qd7 {[%clk
0:00:20.4]} 32. Bxf6+ {[%clk 0:00:45]} 32... Kg8 {[%clk 0:00:19.9]} 33. Qa2
{[%clk 0:00:37.5]} 33... Bc4 {[%clk 0:00:19.4]} 34. Rc1 {[%clk 0:00:35.7]} 34...
Qf7 {[%clk 0:00:16.4]} 35. Qc2 {[%clk 0:00:24.3]} 35... Be6 {[%clk 0:00:10.1]}
36. Qxc6 {[%clk 0:00:20.2]} 36... Rb2+ {[%clk 0:00:08.8]} 37. Kh1 {[%clk
0:00:20.2]} 37... Qxf6 {[%clk 0:00:07.5]} 38. Qe8+ {[%clk 0:00:20.6]} 38... Qf8
{[%clk 0:00:06.4]} 39. Qxe6+ {[%clk 0:00:20.8]} 39... Kh8 {[%clk 0:00:06.8]} 40.
Qxe5+ {[%clk 0:00:20.7]} 40... Kg8 {[%clk 0:00:06.8]} 41. Qxb2 {[%clk
0:00:19.1]} 41... Qxf3+ {[%clk 0:00:05.6]} 42. Qg2 {[%clk 0:00:16.6]} 42... Qh5+
{[%clk 0:00:05.3]} 43. Kg1 {[%clk 0:00:16.3]} 43... Qxh6 {[%clk 0:00:05.4]} 44.
Rc8+ {[%clk 0:00:16.6]} 44... Kf7 {[%clk 0:00:05.5]} 45. Qa2+ {[%clk 0:00:16.2]}
45... Ke7 {[%clk 0:00:06.4]} 46. Qc2 {[%clk 0:00:14.4]} 46... Qe3+ {[%clk
0:00:04.3]} 47. Kg2 {[%clk 0:00:15]} 47... Qxa3 {[%clk 0:00:02.4]} 48. Qc5+
{[%clk 0:00:14.8]} 1-0

[Event "Late-Titled-Tuesday-Blitz-April-16-2024"]
[Site "Chess.com"]
[Date "2024.04.16"]
[Round "6"]
[White "KNVB"]
[Black "Zhigalko_Sergei"]
[Result "1-0"]
[WhiteElo "2804"]
[BlackElo "2918"]
[TimeControl "180+1"]
[EndTime "15:03:48 PDT"]
[Termination "KNVB won on time"]

1. e4 {[%clk 0:03:00.9]} 1... c5 {[%clk 0:02:59.9]} 2. e5 {[%clk 0:03:00.6]}
2... Nc6 {[%clk 0:02:59.2]} 3. c3 {[%clk 0:03:01.5]} 3... Nxe5 {[%clk
0:02:58.8]} 4. d4 {[%clk 0:03:01.7]} 4... cxd4 {[%clk 0:02:46.8]} 5. cxd4 {[%clk
0:03:02.6]} 5... Ng6 {[%clk 0:02:46.4]} 6. h4 {[%clk 0:03:02.5]} 6... h5 {[%clk
0:02:16.6]} 7. Bd3 {[%clk 0:03:01.3]} 7... d5 {[%clk 0:02:17.2]} 8. Qc2 {[%clk
0:02:55.8]} 8... Qb6 {[%clk 0:02:07.7]} 9. Nc3 {[%clk 0:02:44.6]} 9... Bd7
{[%clk 0:01:54]} 10. Nf3 {[%clk 0:02:17.6]} 10... Rc8 {[%clk 0:01:35.2]} 11. O-O
{[%clk 0:02:10.8]} 11... Nh6 {[%clk 0:01:08.5]} 12. Re1 {[%clk 0:01:49]} 12...
Ng4 {[%clk 0:01:08.6]} 13. Bg5 {[%clk 0:01:40.9]} 13... Qd6 {[%clk 0:00:54]} 14.
Qb3 {[%clk 0:00:38]} 14... Nf4 {[%clk 0:00:41.3]} 15. Bxf4 {[%clk 0:00:35]}
15... Qxf4 {[%clk 0:00:41.2]} 16. Nxd5 {[%clk 0:00:35.7]} 16... Qd6 {[%clk
0:00:39.4]} 17. Bb5 {[%clk 0:00:29.6]} 17... e6 {[%clk 0:00:35.9]} 18. Nc3
{[%clk 0:00:26.5]} 18... Be7 {[%clk 0:00:28.6]} 19. d5 {[%clk 0:00:24.2]} 19...
O-O {[%clk 0:00:20.6]} 20. Bxd7 {[%clk 0:00:23.5]} 20... Qxd7 {[%clk 0:00:21.5]}
21. dxe6 {[%clk 0:00:24.1]} 21... fxe6 {[%clk 0:00:05.5]} 22. Rad1 {[%clk
0:00:24.7]} 22... Qe8 {[%clk 0:00:01.9]} 23. Qxe6+ {[%clk 0:00:25.1]} 23... Rf7
{[%clk 0:00:02.6]} 24. Ng5 {[%clk 0:00:25.4]} 24... Rc6 {[%clk 0:00:01]} 25.
Qxf7+ {[%clk 0:00:25.6]} 25... Qxf7 {[%clk 0:00:01.9]} 26. Nxf7 {[%clk
0:00:26.5]} 26... Kxf7 {[%clk 0:00:02.6]} 27. Rd7 {[%clk 0:00:27.3]} 27... Re6
{[%clk 0:00:02.5]} 28. Rxe6 {[%clk 0:00:27.1]} 28... Kxe6 {[%clk 0:00:03.4]} 29.
Rxb7 {[%clk 0:00:28]} 29... Bc5 {[%clk 0:00:04]} 30. Ne4 {[%clk 0:00:27.5]}
30... Bb6 {[%clk 0:00:04.5]} 31. Rxg7 {[%clk 0:00:20.3]} 31... Ke5 {[%clk
0:00:04.7]} 32. Re7+ {[%clk 0:00:18]} 32... Kf5 {[%clk 0:00:04.3]} 33. Kf1
{[%clk 0:00:12.8]} 33... Ne5 {[%clk 0:00:03.7]} 34. Ng3+ {[%clk 0:00:12.1]}
34... Kf6 {[%clk 0:00:03.9]} 35. Rb7 {[%clk 0:00:10.4]} 35... Nd3 {[%clk
0:00:04.2]} 36. b3 {[%clk 0:00:07.2]} 36... Kg6 {[%clk 0:00:04.2]} 37. f3 {[%clk
0:00:05.6]} 37... Nc1 {[%clk 0:00:03.7]} 38. a4 {[%clk 0:00:05.8]} 38... Nxb3
{[%clk 0:00:03.7]} 39. Ne4 {[%clk 0:00:05.9]} 39... Kh6 {[%clk 0:00:01.9]} 40.
Rd7 {[%clk 0:00:05.6]} 40... Nd4 {[%clk 0:00:01.7]} 41. Rd6+ {[%clk 0:00:05.8]}
41... Kg7 {[%clk 0:00:02.2]} 42. a5 {[%clk 0:00:06.3]} 42... Nf5 {[%clk
0:00:01.7]} 43. axb6 {[%clk 0:00:06.6]} 43... Nxd6 {[%clk 0:00:01.6]} 44. bxa7
{[%clk 0:00:07.4]} 44... Nf5 {[%clk 0:00:01.6]} 45. a8=Q {[%clk 0:00:07.4]}
45... Ng3+ {[%clk 0:00:01.9]} 46. Nxg3 {[%clk 0:00:07]} 46... Kh6 {[%clk
0:00:02.8]} 47. Qc6+ {[%clk 0:00:06.7]} 1-0

[Event "Late-Titled-Tuesday-Blitz-April-16-2024"]
[Site "Chess.com"]
[Date "2024.04.16"]
[Round "6"]
[White "Eloist"]
[Black "Charodej1"]
[Result "1/2-1/2"]
[WhiteElo "2468"]
[BlackElo "2317"]
[TimeControl "180+1"]
[EndTime "15:03:48 PDT"]
[Termination "Game drawn by repetition"]

1. e4 {[%clk 0:02:55.2]} 1... c6 {[%clk 0:02:56.9]} 2. Nf3 {[%clk 0:02:54.1]}
2... d5 {[%clk 0:02:57.3]} 3. d3 {[%clk 0:02:52.1]} 3... dxe4 {[%clk 0:02:57.2]}
4. dxe4 {[%clk 0:02:52.3]} 4... Qxd1+ {[%clk 0:02:57.6]} 5. Kxd1 {[%clk
0:02:53.2]} 5... Bg4 {[%clk 0:02:58]} 6. Be2 {[%clk 0:02:48.3]} 6... Nd7 {[%clk
0:02:57.5]} 7. h3 {[%clk 0:02:46.6]} 7... Bxf3 {[%clk 0:02:54.2]} 8. Bxf3 {[%clk
0:02:46.5]} 8... e6 {[%clk 0:02:54.8]} 9. c3 {[%clk 0:02:28.8]} 9... Bc5 {[%clk
0:02:54.1]} 10. Rf1 {[%clk 0:02:23.1]} 10... a5 {[%clk 0:02:52.9]} 11. Kc2
{[%clk 0:02:21]} 11... Ne7 {[%clk 0:02:52.2]} 12. Nd2 {[%clk 0:02:18.7]} 12...
a4 {[%clk 0:02:50.2]} 13. Nc4 {[%clk 0:02:07.4]} 13... b5 {[%clk 0:02:49.8]} 14.
Ne3 {[%clk 0:02:05]} 14... O-O {[%clk 0:02:47.3]} 15. Bd2 {[%clk 0:02:03.4]}
15... Rfd8 {[%clk 0:02:45.1]} 16. b4 {[%clk 0:01:58.5]} 16... Bb6 {[%clk
0:02:39.7]} 17. Rad1 {[%clk 0:01:45.5]} 17... Rac8 {[%clk 0:02:33.2]} 18. Be2
{[%clk 0:01:42.6]} 18... c5 {[%clk 0:02:11.4]} 19. Kb1 {[%clk 0:01:40.6]} 19...
c4 {[%clk 0:02:05.9]} 20. Ng4 {[%clk 0:01:29.4]} 20... h5 {[%clk 0:01:24.8]} 21.
Nh2 {[%clk 0:01:24.6]} 21... g6 {[%clk 0:01:22.9]} 22. f4 {[%clk 0:01:21.4]}
22... Nf6 {[%clk 0:01:19.1]} 23. Bf3 {[%clk 0:01:15.9]} 23... Rd7 {[%clk
0:01:09.2]} 24. Bc1 {[%clk 0:01:09.9]} 24... Rcd8 {[%clk 0:01:08.8]} 25. Kc2
{[%clk 0:01:05.5]} 25... Kg7 {[%clk 0:01:05.5]} 26. Rxd7 {[%clk 0:01:01.8]}
26... Rxd7 {[%clk 0:01:05.4]} 27. g4 {[%clk 0:00:51.5]} 27... Nc6 {[%clk
0:00:49.7]} 28. g5 {[%clk 0:00:36]} 28... Ne8 {[%clk 0:00:44.7]} 29. f5 {[%clk
0:00:29.2]} 29... Ne5 {[%clk 0:00:41.3]} 30. Bf4 {[%clk 0:00:28.1]} 30... Nd3
{[%clk 0:00:39.6]} 31. Bg3 {[%clk 0:00:21.6]} 31... Bc7 {[%clk 0:00:32.6]} 32.
Bxc7 {[%clk 0:00:18.6]} 32... Nxc7 {[%clk 0:00:33.5]} 33. f6+ {[%clk 0:00:15.1]}
33... Kf8 {[%clk 0:00:33.6]} 34. Be2 {[%clk 0:00:15.4]} 34... Ne5 {[%clk
0:00:28.6]} 35. Nf3 {[%clk 0:00:14.8]} 35... Nxf3 {[%clk 0:00:28.6]} 36. Rxf3
{[%clk 0:00:14.6]} 36... e5 {[%clk 0:00:28.8]} 37. Rf1 {[%clk 0:00:13.7]} 37...
Ne6 {[%clk 0:00:27.6]} 38. h4 {[%clk 0:00:13.7]} 38... Nf4 {[%clk 0:00:27.8]}
39. Re1 {[%clk 0:00:11.3]} 39... Ng2 {[%clk 0:00:25]} 40. Rh1 {[%clk 0:00:10.3]}
40... Nf4 {[%clk 0:00:22.9]} 41. Re1 {[%clk 0:00:09.2]} 41... Ke8 {[%clk
0:00:20.1]} 42. Bf1 {[%clk 0:00:09]} 42... Kd8 {[%clk 0:00:19.5]} 43. Rd1 {[%clk
0:00:08.8]} 43... Kc7 {[%clk 0:00:18]} 44. Rxd7+ {[%clk 0:00:08.3]} 44... Kxd7
{[%clk 0:00:18.9]} 45. Kd2 {[%clk 0:00:08.2]} 45... Kd6 {[%clk 0:00:19]} 46. Ke3
{[%clk 0:00:08.5]} 46... Ne6 {[%clk 0:00:18.9]} 47. Kf3 {[%clk 0:00:07.7]} 47...
Nf4 {[%clk 0:00:17.6]} 48. Ke3 {[%clk 0:00:07.8]} 48... Ne6 {[%clk 0:00:17.3]}
49. Bh3 {[%clk 0:00:08]} 49... Nf4 {[%clk 0:00:14.6]} 50. Bf1 {[%clk 0:00:08.2]}
1/2-1/2

[Event "Late-Titled-Tuesday-Blitz-April-16-2024"]
[Site "Chess.com"]
[Date "2024.04.16"]
[Round "6"]
[White "MaxLeto"]
[Black "RebecaJimnz"]
[Result "0-1"]
[WhiteElo "2413"]
[BlackElo "2267"]
[TimeControl "180+1"]
[EndTime "15:03:52 PDT"]
[Termination "RebecaJimnz won by checkmate"]

1. g4 {[%clk 0:02:27.7]} 1... d5 {[%clk 0:02:57.8]} 2. Bg2 {[%clk 0:02:28.1]}
2... Bxg4 {[%clk 0:02:57.2]} 3. c4 {[%clk 0:02:27.6]} 3... c6 {[%clk 0:02:56]}
4. Qb3 {[%clk 0:02:25.9]} 4... Bc8 {[%clk 0:02:16.2]} 5. cxd5 {[%clk 0:02:25.1]}
5... g6 {[%clk 0:02:13.4]} 6. Nc3 {[%clk 0:01:55.7]} 6... Bg7 {[%clk 0:02:08.2]}
7. h4 {[%clk 0:01:56.4]} 7... Nf6 {[%clk 0:02:06.8]} 8. d3 {[%clk 0:01:54.5]}
8... O-O {[%clk 0:02:05.5]} 9. Bd2 {[%clk 0:01:25.9]} 9... cxd5 {[%clk
0:01:54.2]} 10. Nxd5 {[%clk 0:01:24.8]} 10... Nxd5 {[%clk 0:01:52.3]} 11. Bxd5
{[%clk 0:01:24.3]} 11... Nc6 {[%clk 0:01:52.9]} 12. Nf3 {[%clk 0:01:17.3]} 12...
Bg4 {[%clk 0:01:46.8]} 13. Bc3 {[%clk 0:00:59.5]} 13... Bxf3 {[%clk 0:01:14.5]}
14. Bxf3 {[%clk 0:00:58.2]} 14... Nd4 {[%clk 0:01:14.6]} 15. Bxd4 {[%clk
0:00:55.7]} 15... Qxd4 {[%clk 0:01:14.4]} 16. O-O-O {[%clk 0:00:48.2]} 16... a5
{[%clk 0:01:05.6]} 17. Kb1 {[%clk 0:00:23.8]} 17... a4 {[%clk 0:01:05.5]} 18.
Qa3 {[%clk 0:00:24.2]} 18... b5 {[%clk 0:01:02.7]} 19. e3 {[%clk 0:00:20]} 19...
Qf6 {[%clk 0:01:02.3]} 20. Bxa8 {[%clk 0:00:14.2]} 20... Rxa8 {[%clk 0:00:52.8]}
21. Rd2 {[%clk 0:00:09.3]} 21... Rb8 {[%clk 0:00:43.3]} 22. Qb4 {[%clk
0:00:08.9]} 22... Qc6 {[%clk 0:00:42.4]} 23. Rc1 {[%clk 0:00:08]} 23... Qf3
{[%clk 0:00:42]} 24. Rdc2 {[%clk 0:00:05.5]} 24... Rd8 {[%clk 0:00:41.7]} 25. d4
{[%clk 0:00:04.7]} 25... Qe4 {[%clk 0:00:40.9]} 26. Qxb5 {[%clk 0:00:04]} 26...
a3 {[%clk 0:00:38.1]} 27. b3 {[%clk 0:00:04.1]} 27... h5 {[%clk 0:00:29.7]} 28.
Qa5 {[%clk 0:00:04.1]} 28... Ra8 {[%clk 0:00:28.2]} 29. Qxa8+ {[%clk 0:00:04.7]}
29... Qxa8 {[%clk 0:00:27]} 30. Rc8+ {[%clk 0:00:05.6]} 30... Qxc8 {[%clk
0:00:27.5]} 31. Rxc8+ {[%clk 0:00:06.5]} 31... Kh7 {[%clk 0:00:28.2]} 32. Ra8
{[%clk 0:00:06.2]} 32... Bf6 {[%clk 0:00:28.6]} 33. Rxa3 {[%clk 0:00:05]} 33...
Bxh4 {[%clk 0:00:29.2]} 34. Ra8 {[%clk 0:00:04]} 34... Bxf2 {[%clk 0:00:28.9]}
35. Kc2 {[%clk 0:00:03.2]} 35... h4 {[%clk 0:00:28.5]} 36. Kd3 {[%clk
0:00:01.8]} 36... h3 {[%clk 0:00:29]} 37. Rc8 {[%clk 0:00:02.2]} 37... h2 {[%clk
0:00:29.2]} 38. Rc1 {[%clk 0:00:01.7]} 38... Bg1 {[%clk 0:00:29.8]} 39. b4
{[%clk 0:00:01.3]} 39... h1=Q {[%clk 0:00:30]} 40. Rb1 {[%clk 0:00:01.6]} 40...
Qg2 {[%clk 0:00:26.6]} 41. Rb3 {[%clk 0:00:01.4]} 41... Qf1+ {[%clk 0:00:26.5]}
42. Kc3 {[%clk 0:00:01.4]} 42... Qc1+ {[%clk 0:00:26.3]} 43. Kd3 {[%clk
0:00:01.4]} 43... Qxe3+ {[%clk 0:00:26.8]} 44. Kc4 {[%clk 0:00:01.8]} 44... Qe2+
{[%clk 0:00:26.7]} 45. Kc5 {[%clk 0:00:01.7]} 45... Qc2+ {[%clk 0:00:26.6]} 46.
Kb6 {[%clk 0:00:01.6]} 46... Bxd4+ {[%clk 0:00:26]} 47. Kb7 {[%clk 0:00:01.6]}
47... Qxa2 {[%clk 0:00:25.8]} 48. Rh3+ {[%clk 0:00:01.9]} 48... Kg7 {[%clk
0:00:26.2]} 49. b5 {[%clk 0:00:02.4]} 49... Qd5+ {[%clk 0:00:26]} 50. Kb8 {[%clk
0:00:01.9]} 50... Be5+ {[%clk 0:00:25.9]} 51. Kc8 {[%clk 0:00:01.4]} 51... Qe6+
{[%clk 0:00:26.5]} 52. Kb7 {[%clk 0:00:01.2]} 52... Qxh3 {[%clk 0:00:27.4]} 53.
b6 {[%clk 0:00:01.5]} 53... Qd7+ {[%clk 0:00:27.6]} 54. Ka8 {[%clk 0:00:01.8]}
54... Qc6+ {[%clk 0:00:27.4]} 55. b7 {[%clk 0:00:02.1]} 55... Bc7 {[%clk
0:00:27]} 56. Ka7 {[%clk 0:00:02.2]} 56... Qa4# {[%clk 0:00:27.6]} 0-1